fUSD/lending_fUSD_20250222
["ID","MTS","AMOUNT","RATE_DAILY","PERIOD"]
[354107471,1740245475972,-825.91,0.0001726,2]
[354107472,1740245475982,-2524.43,0.0001726,4]
[354107473,1740245475992,-450.0,0.0001728,4]
[354107474,1740245476001,-341.14363,0.00017288,7]
[354107475,1740245476011,-150.0,0.00017304,2]
[354107476,1740245476020,-705.78760957,0.00017329,2]
[354107477,1740245476030,-500.0,0.00017335,2]
[354107478,1740245476040,-152.0,0.00017368,11]
[354107479,1740245476050,-1700.0,0.0001737,4]
[354107480,1740245476059,-500.0,0.00017435,2]
[354107481,1740245476068,-450.0,0.0001744,4]
[354107482,1740245476079,-341.14363,0.00017488,7]
[354107483,1740245476089,-204.0,0.0001753,2]
[354107484,1740245476098,-606.87,0.00017534,2]
[354107485,1740245476108,-825.91,0.00017534,2]
[354107486,1740245476117,-500.0,0.00017535,2]
[354107487,1740245476127,-1000.0,0.0001756,2]
[354107488,1740245476227,-2000.0,0.0001762,2]
[354107489,1740245476237,-500.0,0.00017635,2]
[354107490,1740245476246,-152.0,0.00017656,12]
[354107491,1740245476256,-150.0,0.00017664,2]
[354107492,1740245476265,-341.14363,0.00017688,7]
[354107493,1740245476275,-55497.13269338,0.000177,2]
[354107494,1740245476284,-263.9,0.00017716,2]
[354107495,1740245476293,-180.09185047,0.00017733,2]
[354107496,1740245476302,-500.0,0.00017735,2]
[354107497,1740245476311,-402.78729316,0.0001777,2]
[354107498,1740245476320,-606.87,0.00017808,2]
[354107499,1740245476331,-825.91,0.00017808,2]
[354107500,1740245476340,-500.15349983,0.00017808,3]
[354107501,1740245476350,-600.0,0.00017808,2]
[354107502,1740245476359,-350.0,0.00017808,2]
[354107503,1740245476369,-204.8,0.00017833,2]
[354107504,1740245476379,-500.0,0.00017835,2]
[354107505,1740245476388,-20047.03742595,0.00017839,6]
[354107506,1740245476398,-300.0,0.0001786,2]
[354107507,1740245476407,-341.14363,0.00017888,7]
[354107508,1740245476417,-5000.0,0.000179,3]
[354107509,1740245476426,-5718.21,0.000179,7]
[354107510,1740245476435,-500.0,0.00017935,2]
[354107511,1740245476445,-152.0,0.00017943,13]
[354107512,1740245476454,-5000.0,0.00017987,7]
[354107513,1740245476464,-3028.31087,0.00017991,2]
[354107514,1740245476473,-198.40689889,0.00018,2]
[354107515,1740245476482,-15148.72040859,0.00018,5]
[354107516,1740245476492,-161.0,0.00018,30]
[354107517,1740245476501,-1601.39643253,0.00018,4]
[354107518,1740245476511,-5008.91266,0.00018,30]
[354107519,1740245476520,-35207.85637085,0.00018,2]
[354107520,1740245476530,-500.13,0.00018,5]
[354107521,1740245476540,-30000.0,0.00018,10]
[354107522,1740245476549,-30000.0,0.00018,10]
[354107523,1740245476559,-30000.0,0.00018,10]
[354107524,1740245476568,-30000.0,0.00018,10]
[354107525,1740245476581,-30000.0,0.00018,10]
[354107526,1740245476591,-32880.0469368,0.00018,10]
[354107527,1740245476600,-956.1270487,0.00018,8]
[354107528,1740245476609,-10000.0,0.00018,2]
[354107529,1740245476619,-10000.0,0.00018,2]
[354107530,1740245476628,-5000.0,0.00018,7]
[354107531,1740245476637,-10000.0,0.00018,2]
[354107532,1740245476646,-1138.1478106,0.00018,2]
[354107533,1740245476656,-931.9315898,0.00018,19]
[354107534,1740245476665,-1000.0,0.00018,15]
[354107535,1740245476674,-16683.00555393,0.00018,2]
[354107536,1740245477021,-500.0,0.00010958,2]
[354107537,1740245477031,-500.0,0.00011041,2]
[354107538,1740245477040,-500.0,0.00011123,2]
[354107539,1740245477049,-500.0,0.00011205,2]
[354107540,1740245477059,-500.0,0.00011287,2]
[354107541,1740245477068,-500.0,0.00011369,2]
[354107542,1740245477078,-500.0,0.00011452,2]
[354107543,1740245477087,-500.0,0.00011534,2]
[354107544,1740245477096,-500.0,0.00011616,2]
[354107545,1740245477105,-500.0,0.00011698,2]
[354107546,1740245477114,-610.67,0.00012944,2]
[354107547,1740245477124,-398.08850007,0.00012999,2]
[354107548,1740245477133,-2919.29917173,0.00018,2]
[354107549,1740245477249,-500.0,0.00010958,2]
[354107550,1740245477258,-500.0,0.0001178,2]
[354107551,1740245477268,-500.0,0.00011863,2]
[354107552,1740245477277,-500.0,0.00011945,2]
[354107553,1740245477287,-500.0,0.00012027,2]
[354107554,1740245477296,-500.0,0.00012109,2]
[354107555,1740245477305,-500.0,0.00012191,2]
[354107556,1740245477315,-500.0,0.00012273,2]
[354107557,1740245477326,-4097.13451316,0.00018,2]
[354107558,1740245477335,-157.0,0.00018,3]
[354107559,1740245477344,-509.888401,0.00018,2]
[354107560,1740245477354,-150.0,0.00018025,2]
[354107561,1740245477363,-500.0,0.00018035,2]
[354107562,1740245477373,-606.87,0.00018082,2]
[354107563,1740245477383,-825.91,0.00018082,2]
[354107564,1740245477392,-200.0,0.00018082,2]
[354107565,1740245477402,-341.14363,0.00018088,7]
[354107566,1740245477412,-102374.01557657,0.000181,2]
[354107567,1740245477434,-7158.63080593,0.000181,2]
[354107568,1740245501103,371.41,8.767e-05,2]
[354107570,1740245673195,92048.0839268,0.000199,120]
[354107571,1740246330105,1663.87166827,0.00010957,7]
[354107572,1740246473260,-150.0,0.00010932,2]
[354107573,1740246473282,-150.0,0.00010957,2]
[354107574,1740246473304,-300.0,0.00010957,2]
[354107575,1740246473324,-150.0,0.00010958,2]
[354107576,1740246473350,-500.0,0.00010958,2]
[354107577,1740246473371,-500.0,0.00010958,2]
[354107578,1740246473394,-500.0,0.00010958,2]
[354107579,1740246473415,-500.0,0.00010958,2]
[354107580,1740246473435,-500.0,0.00011041,2]
[354107581,1740246473456,-219.76,0.00011041,2]
[354107582,1740246473480,-513.1596821,0.00011041,2]
[354107583,1740246473500,-150.0,0.00011357,2]
[354107584,1740246473520,-250.0,0.00011678,2]
[354107585,1740246473540,-702.06927854,0.00011941,2]
[354107586,1740246473560,-175.0,0.00011998,2]
[354107587,1740246473580,-6613.77,0.00012041,2]
[354107588,1740246473601,-6217.65,0.00012041,2]
[354107589,1740246473621,-9999.99,0.00012041,2]
[354107590,1740246473642,-420.0,0.00012041,2]
[354107591,1740246473662,-44120.21,0.00012041,2]
[354107592,1740246473682,-499.99,0.00012041,2]
[354107593,1740246473703,-150.0,0.00012053,2]
[354107594,1740246473724,-500.0,0.00012053,2]
[354107595,1740246473746,-153.0,0.0001208,2]
[354107596,1740246473766,-153.0,0.0001208,2]
[354107597,1740246473786,-153.0,0.0001208,2]
[354107598,1740246473807,-215.344758,0.00012114,2]
[354107624,1740246632021,-153.0,0.00011721,2]
[354107625,1740246632030,-153.0,0.00011721,2]
[354107626,1740246632039,-157.0,0.00012114,3]
[354107627,1740246632048,-1000.0,0.00012328,2]
[354107628,1740246632058,-241.85,0.00012569,2]
[354107629,1740246632067,-1143.64,0.000129,2]
[354107630,1740246632076,-499.82845976,0.00012976,2]
[354107631,1740246632086,-150.99,0.00013058,2]
[354107632,1740246632095,-420.91070799,0.00013123,2]
[354107633,1740246632107,-356.15532581,0.00013123,2]
[354107634,1740246632118,-282.9339662,0.00013123,2]
[354107636,1740246632307,-98.44815339,0.00013211,2]
[354107638,1740246632323,-201.55184661,0.00013211,2]
[354107640,1740246632332,-208.67950636,0.00013212,2]
[354107641,1740246632342,-1135.65280115,0.00013212,2]
[354107642,1740246632353,-139.34719885,0.00013212,2]
[354107644,1740246632363,-2027.0,0.00013212,2]
[354107645,1740246632372,-577.7329938,0.00013212,2]
[354107648,1740246632385,-61.2670062,0.00013212,2]
[354107650,1740246632396,-569.0,0.00013212,2]
[354107652,1740246632405,-1225.78939943,0.00013212,2]
[354107654,1740246632417,-40.21060057,0.00013212,2]
[354107656,1740246632427,-908.0,0.00013212,2]
[354107658,1740246632436,-1424.0,0.00013212,2]
[354107660,1740246632446,-327.98236878,0.00013212,2]
[354107662,1740246632457,-456.01763122,0.00013212,2]
[354107664,1740246632467,-4032.0,0.00013212,2]
[354107667,1740246632476,-539.0,0.00013212,2]
[354107669,1740246632485,-3920.0,0.00013212,2]
[354107672,1740246632504,-150.0,0.00013212,2]
[354107675,1740246632515,-179.67,0.00013566,2]
[354107677,1740246632525,-179.61,0.00013699,2]
[354107679,1740246632535,-1060.0,0.00013814,2]
[354107681,1740246632545,-500.0,0.00014264,2]
[354107683,1740246632555,-162.66,0.00014435,2]
[354107685,1740246632565,-200.0,0.00014478,2]
[354107687,1740246632575,-608.64236878,0.00014504,2]
[354107689,1740246632588,-451.35763122,0.00014504,2]
[354107691,1740246632598,-2198.38,0.00014523,2]
[354107694,1740246632608,-1000.0,0.0001457,2]
[354107696,1740246632618,-195.52855791,0.000146,2]
[354107698,1740246632627,-474.82,0.00014763,2]
[354107699,1740246632638,-7258.56,0.00014783,2]
[354107702,1740246632647,-241.85,0.00014832,2]
[354107704,1740246632657,-2497.0,0.00015,5]
[354107706,1740246632667,-300.0,0.00015193,2]
[354107708,1740246632676,-152.32,0.000153,31]
[354107710,1740246632686,-152.32,0.000153,31]
[354107712,1740246632695,-152.32,0.000153,31]
[354107714,1740246632705,-152.32,0.000153,31]
[354107716,1740246632714,-152.32,0.000153,31]
[354107718,1740246632724,-152.32,0.000153,31]
[354107720,1740246632733,-152.32,0.000153,31]
[354107722,1740246632743,-152.32,0.000153,31]
[354107724,1740246632752,-152.32,0.000153,31]
[354107726,1740246632762,-152.32,0.000153,31]
[354107728,1740246632771,-152.32,0.000153,31]
[354107730,1740246632781,-152.32,0.000153,31]
[354107732,1740246632791,-152.32,0.000153,31]
[354107734,1740246632800,-152.32,0.000153,31]
[354107736,1740246632809,-500.0,0.00015421,2]
[354107738,1740246632819,-371.41,0.00015516,2]
[354107740,1740246632829,-4248.3,0.00015537,2]
[354107742,1740246632838,-681.44715149,0.00015567,2]
[354107744,1740246632848,-166.23,0.00015752,2]
[354107746,1740246632857,-300.0,0.00016,2]
[354107748,1740246632867,-597.39637229,0.00016034,2]
[354107750,1740246632879,-726.75562771,0.00016034,2]
[354107752,1740246632889,-185.313,0.00016034,2]
[354107754,1740246632899,-9999.99,0.00016116,2]
[354107756,1740246632909,-300.0,0.0001616,2]
[354107758,1740246632918,-1275.0,0.00016212,2]
[354107760,1740246632927,-1072.991,0.00016212,2]
[354107762,1740246632937,-639.0,0.00016212,2]
[354107764,1740246632947,-569.0,0.00016212,2]
[354107766,1740246632958,-1685.614,0.00016212,2]
[354107768,1740246632968,-514.292,0.00016212,2]
[354107770,1740246632977,-3920.0,0.00016212,2]
[354107772,1740246632987,-150.0,0.00016212,2]
[354107774,1740246632998,-150.0,0.00016218,2]
[354107776,1740246633007,-162.66,0.0001624,2]
[354107778,1740246633017,-300.0,0.0001632,2]
[354107779,1740246633027,-1000.0,0.00016391,2]
[354107780,1740246633038,-150.0,0.00016438,2]
[354107781,1740246633048,-300.0,0.0001648,2]
[354107782,1740246633059,-300.0,0.00016563,2]
[354107783,1740246633069,-300.0,0.0001664,2]
[354107784,1740246633079,-150.0,0.00016651,2]
[354107785,1740246633089,-150.0,0.00016693,2]
[354107786,1740246633102,-152.32170862,0.00016693,2]
[354107787,1740246633114,-150.0,0.00016693,2]
[354107788,1740246633123,-176.51,0.00016712,2]
[354107789,1740246633134,-270.38,0.00016721,2]
[354107790,1740246633145,-1973.16,0.00016743,2]
[354107792,1740246633155,-150.0,0.00016743,2]
[354107794,1740246633164,-150.0,0.00016743,2]
[354107796,1740246633174,-150.0,0.00016743,2]
[354107798,1740246633188,-450.0,0.000168,4]
[354107800,1740246633198,-203.01220601,0.000169,2]
[354107802,1740246633208,-450.0,0.0001696,4]
[354107804,1740246633219,-200.0,0.00017004,2]
[354107806,1740246633229,-150.0,0.00017084,2]
[354107808,1740246633238,-241.85,0.00017096,2]
[354107811,1740246633248,-450.0,0.0001712,4]
[354107813,1740246633260,-214.57775421,0.00017123,2]
[354107815,1740246633270,-450.0,0.0001728,4]
[354107816,1740246633279,-500.0,0.00017355,2]
[354107818,1740246633290,-440.37,0.00017427,2]
[354107821,1740246633299,-450.0,0.0001744,4]
[354107822,1740246633309,-500.0,0.00017455,2]
[354107824,1740246633319,-150.0,0.00017517,2]
[354107826,1740246633329,-500.0,0.00017555,2]
[354107828,1740246633339,-152.0,0.00017584,3]
[354107830,1740246633348,-500.0,0.00017655,2]
[354107832,1740246633358,-500.0,0.00017755,2]
[354107834,1740246633368,-3430.92,0.000178,7]
[354107836,1740246633378,-600.0,0.00017808,2]
[354107838,1740246633388,-500.0,0.00017855,2]
[354107840,1740246633398,-500.0,0.000179,6]
[354107842,1740246633408,-2018.87391,0.0001792,2]
[354107845,1740246633418,-407.24510512,0.00017922,2]
[354107847,1740246633428,-150.0,0.0001795,2]
[354107849,1740246633438,-500.0,0.00017954,2]
[354107850,1740246633447,-500.0,0.00017955,2]
[354107853,1740246633456,-6912.96661611,0.00018,2]
[354107855,1740246633468,-979.02,0.00018,2]
[354107857,1740246633481,-12862.20762465,0.00018,2]
[354107859,1740246633493,-13531.20505924,0.00018,2]
[354107861,1740246633503,-624.83806828,0.00018,2]
[354107863,1740246633513,-84058.4173493,0.00018,2]
[354107865,1740246633523,-162.66,0.00018044,2]
[354107867,1740246633532,-500.0,0.00018055,2]
[354107869,1740246633541,-200.0,0.00018082,2]
[354107870,1740246633551,-500.0,0.00018089,2]
[354107872,1740246633560,-500.0,0.00018089,2]
[354107874,1740246633571,-537.55023838,0.00018089,2]
[354107875,1740246633582,-500.0,0.00018089,2]
[354107876,1740246633592,-498.11,0.00018089,2]
[354107877,1740246633602,-541.97,0.00018089,2]
[354107878,1740246633612,-191.35355355,0.00018089,2]
[354107879,1740246633622,-500.0,0.00018089,2]
[354107880,1740246633636,-500.0,0.00018089,2]
[354107881,1740246633646,-500.0,0.00018089,2]
[354107882,1740246633655,-500.0,0.00018089,2]
[354107883,1740246633665,-521.37495496,0.00018089,2]
[354107884,1740246633675,-523.60123206,0.00018089,2]
[354107885,1740246633684,-208.38,0.00018089,2]
[354107886,1740246633694,-266.45,0.00018089,2]
[354107887,1740246633703,-500.0,0.00018089,2]
[354107888,1740246633713,-500.0,0.00018089,2]
[354107889,1740246633722,-500.0,0.00018089,2]
[354107890,1740246633732,-500.0,0.00018089,2]
[354107891,1740246633741,-500.0,0.00018089,2]
[354107892,1740246633753,-500.0,0.00018089,2]
[354107893,1740246633762,-500.0,0.00018089,2]
[354107894,1740246633772,-500.0,0.00018089,2]
[354107895,1740246633782,-374.33282669,0.00018089,2]
[354107896,1740246633792,-500.0,0.00018089,2]
[354107897,1740246633802,-500.0,0.00018089,2]
[354107898,1740246633812,-500.0,0.00018089,2]
[354107899,1740246633822,-500.0,0.00018089,2]
[354107900,1740246633831,-500.0,0.00018089,2]
[354107901,1740246633840,-500.0,0.00018089,2]
[354107902,1740246633853,-85439.53865692,0.0001809,3]
[354107903,1740246633865,-20611.40069932,0.0001809,3]
[354107909,1740246637907,-399.9331493,0.00018089,2]
[354107910,1740246637917,-308.62457396,0.0001809,3]
[354107911,1740246638014,-13057.36876134,0.0001809,3]
[354107916,1740246640340,-281.9425324,0.0001809,3]
[354107917,1740246640353,-1118.30148002,0.0001809,3]
[354107918,1740246640365,-353.66999325,0.0001809,3]
[354107925,1740246643405,-267.42773406,0.00018089,2]
[354107928,1740246645974,-232.57226594,0.00018089,2]
[354107929,1740246645983,-325.83236268,0.00018089,2]
[354107930,1740246645992,-17134.09721279,0.0001809,3]
[354107931,1740246646001,-500.0,0.00018099,2]
[354107932,1740246646010,-500.0,0.00018099,2]
[354107933,1740246646019,-500.0,0.00018099,2]
[354107934,1740246646027,-320.52,0.00018099,2]
[354107935,1740246646036,-500.0,0.00018099,2]
[354107936,1740246646045,-500.0,0.00018099,2]
[354107937,1740246646054,-500.0,0.00018099,2]
[354107938,1740246646063,-500.0,0.00018099,2]
[354107939,1740246646072,-500.0,0.00018099,2]
[354107940,1740246646081,-500.0,0.00018099,2]
[354107941,1740246646090,-207.55817617,0.00018099,2]
[354107942,1740246646098,-500.0,0.00018099,2]
[354107943,1740246646107,-500.0,0.00018099,2]
[354107944,1740246646117,-161795.61096237,0.000181,2]
[354107945,1740246646126,-1702.46314988,0.000181,2]
[354107946,1740246646135,-130859.11581269,0.000181,2]
[354107947,1740246646145,-624.83806819,0.00018149,2]
[354107948,1740246646154,-500.0,0.00018155,2]
[354107949,1740246646163,-416.87644645,0.00018172,2]
[354107950,1740246646172,-500.0,0.00018172,2]
[354107951,1740246646182,-500.0,0.00018172,2]
[354107952,1740246646195,-500.0,0.00018172,2]
[354107953,1740246646204,-500.0,0.00018172,2]
[354107954,1740246646213,-320.61,0.00018172,2]
[354107955,1740246646222,-500.0,0.00018172,2]
[354107956,1740246646231,-500.0,0.00018172,2]
[354107957,1740246646240,-500.0,0.00018172,2]
[354107958,1740246646249,-500.0,0.00018172,2]
[354107959,1740246646259,-400.30004668,0.00018172,2]
[354107960,1740246646269,-500.0,0.00018172,2]
[354107961,1740246646279,-500.0,0.00018172,2]
[354107962,1740246646288,-500.0,0.00018172,2]
[354107963,1740246646296,-500.0,0.00018172,2]
[354107964,1740246646306,-500.0,0.00018172,2]
[354107965,1740246646315,-500.0,0.00018181,2]
[354107966,1740246646324,-500.0,0.00018181,2]
[354107967,1740246646333,-500.0,0.00018181,2]
[354107968,1740246646342,-554.04,0.00018181,2]
[354107969,1740246646351,-10134.07813293,0.000182,2]
[354107970,1740246646360,-1000.0,0.00018212,2]
[354107971,1740246646369,-205.4065074,0.00018233,2]
[354107972,1740246646379,-203.012206,0.00018233,2]
[354107973,1740246646388,-34576.2359775,0.00018244,3]
[354107974,1740246646398,-500.0,0.00018254,2]
[354107975,1740246646408,-500.0,0.00018254,2]
[354107977,1740246646417,-500.0,0.00018254,2]
[354107979,1740246646426,-500.0,0.00018254,2]
[354107980,1740246646435,-500.0,0.00018254,2]
[354107981,1740246646444,-197.04465041,0.00018254,2]
[354107982,1740246646453,-332.53338257,0.00018254,2]
[354107984,1740246646462,-500.0,0.00018254,2]
[354107985,1740246646471,-500.0,0.00018254,2]
[354107986,1740246646480,-500.0,0.00018254,2]
[354107987,1740246646489,-500.0,0.00018254,2]
[354107988,1740246646498,-500.0,0.00018254,2]
[354107989,1740246646510,-24999.7368965,0.00018254,3]
[354107990,1740246646519,-500.0,0.00018255,2]
[354107991,1740246646528,-183.5036295,0.00018264,2]
[354107992,1740246646537,-500.0,0.00018264,2]
[354107993,1740246646547,-160.04,0.00018264,2]
[354107994,1740246646556,-341.14363,0.00018288,7]
[354107995,1740246646565,-624.83806819,0.00018298,2]
[354107996,1740246646574,-500.0,0.000183,2]
[354107997,1740246646583,-500.0,0.00018336,2]
[354107998,1740246646592,-500.0,0.00018336,2]
[354107999,1740246646601,-500.0,0.00018336,2]
[354108000,1740246646611,-500.0,0.00018336,2]
[354108001,1740246646619,-500.0,0.00018336,2]
[354108002,1740246646629,-500.0,0.00018336,2]
[354108003,1740246646642,-500.0,0.00018336,2]
[354108004,1740246646651,-500.0,0.00018336,2]
[354108005,1740246646661,-500.0,0.00018336,2]
[354108006,1740246646670,-626.80410229,0.00018336,2]
[354108007,1740246646680,-34576.2359775,0.00018336,3]
[354108008,1740246646689,-49999.473793,0.00018336,3]
[354108009,1740246646702,-500.0,0.00018346,2]
[354108010,1740246646711,-34576.2359775,0.00018346,3]
[354108011,1740246646719,-24999.7368965,0.00018346,3]
[354108012,1740246646728,-500.0,0.00018355,2]
[354108013,1740246646737,-24999.7368965,0.00018355,3]
[354108014,1740246646746,-606.87,0.00018356,2]
[354108015,1740246646755,-825.91,0.00018356,2]
[354108016,1740246646764,-82640.43,0.00018356,2]
[354108017,1740246646774,-3425.1834663,0.00018365,2]
[354108018,1740246646783,-34576.2359775,0.00018374,3]
[354108019,1740246646792,-150.0,0.00018384,2]
[354108020,1740246646801,-150.0,0.00018389,2]
[354108021,1740246646810,-439.34,0.00018389,2]
[354108022,1740246646819,-987.36,0.00018389,2]
[354108023,1740246646828,-150.0,0.00018389,2]
[354108024,1740246646837,-150.0,0.00018389,2]
[354108025,1740246646846,-776.23,0.0001839,2]
[354108026,1740246646855,-776.23,0.0001839,2]
[354108027,1740246646864,-561.45,0.0001839,2]
[354108028,1740246646873,-776.23,0.0001839,2]
[354108029,1740246646882,-776.23,0.0001839,2]
[354108030,1740246646891,-440.37,0.0001839,2]
[354108031,1740246646900,-439.16,0.0001839,2]
[354108032,1740246646910,-776.23,0.0001839,2]
[354108033,1740246646919,-500.0,0.00018418,2]
[354108034,1740246646928,-500.0,0.00018418,2]
[354108035,1740246646937,-500.0,0.00018418,2]
[354108036,1740246646946,-500.0,0.00018418,2]
[354108037,1740246646955,-500.0,0.00018418,2]
[354108038,1740246646965,-500.0,0.00018428,2]
[354108039,1740246646974,-180.09185047,0.0001844,2]
[354108040,1740246646983,-624.83806819,0.00018447,2]
[354108041,1740246646992,-500.0,0.00018455,2]
[354108042,1740246647001,-221.0,0.0001846,2]
[354108043,1740246647010,-341.14363,0.00018488,7]
[354108044,1740246647019,-500.0,0.000185,2]
[354108045,1740246647027,-500.0,0.000185,2]
[354108046,1740246647036,-500.0,0.000185,2]
[354108047,1740246647046,-500.0,0.000185,2]
[354108048,1740246647058,-1100.0,0.000185,6]
[354108049,1740246647067,-242033.651842,0.0001853,3]
[354108050,1740246647076,-249997.368965,0.0001853,3]
[354108051,1740246647086,-24999.7368965,0.0001854,3]
[354108052,1740246647095,-69152.4719549,0.0001854,3]
[354108053,1740246647104,-24999.7368965,0.0001854,3]
[354108054,1740246647113,-2314.06,0.00018549,2]
[354108055,1740246647123,-814.0,0.0001855,2]
[354108056,1740246647132,-10779.64223281,0.0001855,3]
[354108057,1740246647268,-652.48807836,0.0001855,3]
[354108062,1740247832169,-686.18,0.00013,2]
[354108063,1740247832178,-5551.0,0.000131,5]
[354108064,1740247832188,-151.4,0.00013257,2]
[354108065,1740247832197,-150.0,0.00013257,2]
[354108066,1740247832207,-150.0,0.00013257,2]
[354108067,1740247832217,-566.823,0.00013257,2]
[354108068,1740247832226,-569.0,0.00013257,2]
[354108069,1740247832235,-638.0,0.00013257,2]
[354108070,1740247832244,-1982.051,0.00013257,2]
[354108071,1740247832254,-179.61,0.00013699,2]
[354108072,1740247832263,-1000.0,0.0001408,2]
[354108073,1740247832272,-1875.0,0.000151,2]
[354108074,1740247832281,-1875.0,0.00015256,2]
[354108075,1740247832291,-205.57,0.00015277,2]
[354108076,1740247832301,-152.34,0.000153,31]
[354108077,1740247832310,-152.34,0.000153,31]
[354108078,1740247832320,-152.34,0.000153,31]
[354108079,1740247832329,-152.34,0.000153,31]
[354108080,1740247832338,-152.34,0.000153,31]
[354108081,1740247832348,-152.34,0.000153,31]
[354108082,1740247832357,-152.34,0.000153,31]
[354108083,1740247832366,-1875.0,0.00015411,2]
[354108084,1740247832375,-150.0,0.00015566,2]
[354108085,1740247832384,-1875.0,0.00015567,2]
[354108086,1740247832393,-626.04512328,0.00015567,2]
[354108087,1740247832402,-999.99,0.00015567,2]
[354108088,1740247832411,-9999.99,0.00015567,2]
[354108089,1740247832421,-267.97,0.00015567,2]
[354108090,1740247832430,-1875.0,0.00015723,2]
[354108091,1740247832440,-1875.0,0.00015878,2]
[354108092,1740247832449,-702.06927854,0.0001592,2]
[354108093,1740247832458,-2000.0,0.00016,2]
[354108094,1740247832467,-2000.0,0.0001601,2]
[354108095,1740247832477,-3729.354699,0.0001602,2]
[354108096,1740247832486,-1875.0,0.00016034,2]
[354108097,1740247832495,-6302.94,0.00016116,2]
[354108098,1740247832504,-150.0,0.00016257,2]
[354108099,1740247832514,-150.0,0.00016257,2]
[354108100,1740247832523,-162.66,0.00016378,2]
[354108101,1740247832533,-250.0,0.00016438,2]
[354108102,1740247832542,-375.98,0.00016645,2]
[354108103,1740247832552,-200.0,0.00016655,2]
[354108104,1740247832562,-176.51,0.00016712,2]
[354108105,1740247832574,-1000.0,0.00016723,2]
[354108106,1740247832585,-170.64,0.00016931,2]
[354108107,1740247832595,-2244.73,0.00017145,2]
[354108108,1740247832605,-250.0,0.00017146,2]
[354108109,1740247832615,-5719.64,0.00017219,2]
[354108111,1740247832624,-200.0,0.00017281,2]
[354108113,1740247832633,-188.04,0.00017342,2]
[354108115,1740247832642,-150.0,0.00017427,2]
[354108117,1740247832652,-543.21,0.00017485,2]
[354108119,1740247832662,-205.57,0.00017541,2]
[354108121,1740247832671,-600.0,0.00017808,2]
[354108123,1740247832681,-150.0,0.00017893,2]
[354108125,1740247832691,-1751.101,0.00017893,2]
[354108127,1740247832701,-179.883,0.00017893,2]
[354108129,1740247832710,-203.012206,0.000179,2]
[354108131,1740247832718,-2058.56,0.000179,7]
[354108133,1740247832728,-407.24510512,0.00018097,2]
[354108135,1740247832737,-500.0,0.00018178,2]
[354108137,1740247832746,-200.0,0.00018224,2]
[354108139,1740247832755,-221.0,0.00018236,2]
[354108141,1740247832764,-230.6,0.00018247,2]
[354108143,1740247832773,-150.0,0.00018358,2]
[354108145,1740247832783,-150.0,0.0001837,2]
[354108147,1740247832792,-150.0,0.00018383,2]
[354108149,1740247832801,-249.7,0.0001839,2]
[354108151,1740247832810,-150.22,0.0001839,2]
[354108153,1740247832819,-150.0,0.0001839,2]
[354108155,1740247832828,-150.66,0.0001839,2]
[354108156,1740247832837,-150.0,0.0001839,2]
[354108158,1740247832846,-150.0,0.0001839,2]
[354108159,1740247832856,-987.36,0.0001839,2]